[Event "Live Chess"]
[Site "Chess.com"]
[Date "2023.05.21"]
[Round "-"]
[White "Long1968"]
[Black "LiamClery2020"]
[Result "0-1"]
[WhiteElo "982"]
[BlackElo "2028"]
[TimeControl "300"]
[EndTime "2:07:05 PDT"]
[Termination "LiamClery2020 won on time"]

1. e3 {[%clk 0:04:58.6]} 1... Nf6 {[%clk 0:04:59.9]} 2. d4 {[%clk 0:04:55.9]}
2... e6 {[%clk 0:04:56.7]} 3. c4 {[%clk 0:04:53.6]} 3... d5 {[%clk 0:04:56.6]}
4. Nc3 {[%clk 0:04:50.6]} 4... c5 {[%clk 0:04:55.5]} 5. Nf3 {[%clk 0:04:47.3]}
5... cxd4 {[%clk 0:04:54.4]} 6. exd4 {[%clk 0:04:44.6]} 6... Nc6 {[%clk
0:04:53.8]} 7. Bg5 {[%clk 0:04:36.8]} 7... Be7 {[%clk 0:04:52.5]} 8. Qd2 {[%clk
0:04:29.3]} 8... O-O {[%clk 0:04:49.2]} 9. h4 {[%clk 0:04:21.4]} 9... Qb6 {[%clk
0:04:43]} 10. c5 {[%clk 0:04:11.1]} 10... Qc7 {[%clk 0:04:40.7]} 11. a3 {[%clk
0:04:04.9]} 11... h6 {[%clk 0:04:38.1]} 12. Qd3 {[%clk 0:03:52]} 12... e5 {[%clk
0:04:34.2]} 13. Bxf6 {[%clk 0:03:23.9]} 13... Bxf6 {[%clk 0:04:30.9]} 14. Nxd5
{[%clk 0:03:19.9]} 14... Qd8 {[%clk 0:04:29.6]} 15. dxe5 {[%clk 0:03:06.9]}
15... Bxe5 {[%clk 0:04:27.7]} 16. Nc3 {[%clk 0:02:12.9]} 16... Bxc3+ {[%clk
0:04:22.3]} 17. Qxc3 {[%clk 0:02:05.6]} 17... Re8+ {[%clk 0:04:22.2]} 18. Be2
{[%clk 0:01:58.6]} 18... Bg4 {[%clk 0:04:18.7]} 19. Rd1 {[%clk 0:01:41.6]} 19...
Qe7 {[%clk 0:04:14.1]} 20. Rd2 {[%clk 0:01:02.1]} 20... Rad8 {[%clk 0:04:08.6]}
21. Qe3 {[%clk 0:00:04.5]} 21... Qc7 {[%clk 0:04:05.2]} 0-1

[Event "Live Chess"]
[Site "Chess.com"]
[Date "2023.05.21"]
[Round "-"]
[White "MarkLim1"]
[Black "jagbama"]
[Result "1-0"]
[WhiteElo "1722"]
[BlackElo "1158"]
[TimeControl "300"]
[EndTime "2:07:29 PDT"]
[Termination "MarkLim1 won on time"]

1. d4 {[%clk 0:04:58.6]} 1... d5 {[%clk 0:04:58.8]} 2. Nf3 {[%clk 0:04:57.8]}
2... Nc6 {[%clk 0:04:57.9]} 3. e3 {[%clk 0:04:56.2]} 3... Bf5 {[%clk 0:04:56.9]}
4. a3 {[%clk 0:04:53.2]} 4... e6 {[%clk 0:04:52.6]} 5. c4 {[%clk 0:04:52.6]}
5... Nge7 {[%clk 0:04:44.3]} 6. Nc3 {[%clk 0:04:49.8]} 6... a6 {[%clk
0:04:36.9]} 7. cxd5 {[%clk 0:04:48.7]} 7... exd5 {[%clk 0:04:35.7]} 8. Bd3
{[%clk 0:04:46.9]} 8... Bg4 {[%clk 0:04:30.3]} 9. h3 {[%clk 0:04:44.3]} 9...
Bxf3 {[%clk 0:04:21.7]} 10. Qxf3 {[%clk 0:04:41.7]} 10... Qd6 {[%clk 0:03:55.8]}
11. O-O {[%clk 0:04:33.2]} 11... O-O-O {[%clk 0:03:51.3]} 12. b4 {[%clk
0:04:31.8]} 12... g6 {[%clk 0:03:39]} 13. b5 {[%clk 0:04:30.4]} 13... Na7 {[%clk
0:03:35.6]} 14. bxa6 {[%clk 0:04:28.6]} 14... b6 {[%clk 0:03:31]} 15. Bd2 {[%clk
0:04:21.5]} 15... f5 {[%clk 0:03:13]} 16. Rfc1 {[%clk 0:04:17.6]} 16... Nec6
{[%clk 0:02:49.8]} 17. Bb5 {[%clk 0:04:04.4]} 17... Kb8 {[%clk 0:02:41.1]} 18.
a4 {[%clk 0:04:00.4]} 18... Na5 {[%clk 0:02:35.5]} 19. Na2 {[%clk 0:03:50.3]}
19... Nb3 {[%clk 0:02:26.6]} 20. Bb4 {[%clk 0:03:32.4]} 20... Qe6 {[%clk
0:01:49.7]} 21. Rab1 {[%clk 0:03:24.2]} 21... Nxc1 {[%clk 0:01:41.4]} 22. Rxc1
{[%clk 0:03:24.1]} 22... Bxb4 {[%clk 0:01:28.6]} 23. Nxb4 {[%clk 0:03:21.5]}
23... g5 {[%clk 0:01:16.9]} 24. Nc6+ {[%clk 0:03:20]} 24... Nxc6 {[%clk
0:01:15.4]} 25. Rxc6 {[%clk 0:03:17.7]} 25... Qf7 {[%clk 0:01:04]} 26. Qe2
{[%clk 0:03:12.7]} 26... Ka7 {[%clk 0:01:00.1]} 27. Qd2 {[%clk 0:03:05.9]} 27...
g4 {[%clk 0:00:55.3]} 28. hxg4 {[%clk 0:03:03.3]} 28... h5 {[%clk 0:00:49.5]}
29. g5 {[%clk 0:02:57.5]} 29... h4 {[%clk 0:00:48.3]} 30. a5 {[%clk 0:02:55.1]}
30... h3 {[%clk 0:00:35.5]} 31. axb6+ {[%clk 0:02:50.4]} 31... cxb6 {[%clk
0:00:34.2]} 32. Qc2 {[%clk 0:02:43.9]} 32... Rd7 {[%clk 0:00:32.5]} 33. g3
{[%clk 0:02:20]} 33... h2+ {[%clk 0:00:29.7]} 34. Kh1 {[%clk 0:02:16.9]} 34...
Qe7 {[%clk 0:00:26.7]} 35. Rg6 {[%clk 0:01:59.5]} 35... Rc7 {[%clk 0:00:19.5]}
36. Rc6 {[%clk 0:01:53.4]} 36... Rxc6 {[%clk 0:00:15.8]} 37. Bxc6 {[%clk
0:01:50.7]} 37... Qxg5 {[%clk 0:00:06.2]} 38. Bxd5 {[%clk 0:01:45.3]} 38... f4
{[%clk 0:00:01.5]} 39. Qc7+ {[%clk 0:01:33]} 1-0

[Event "Live Chess"]
[Site "Chess.com"]
[Date "2023.05.21"]
[Round "-"]
[White "elephantgerrald"]
[Black "Denz14"]
[Result "0-1"]
[WhiteElo "696"]
[BlackElo "1048"]
[TimeControl "300"]
[EndTime "2:07:30 PDT"]
[Termination "Denz14 won on time"]

1. d4 {[%clk 0:04:57.5]} 1... Nf6 {[%clk 0:04:57.3]} 2. Nf3 {[%clk 0:04:55.8]}
2... d6 {[%clk 0:04:57.2]} 3. e3 {[%clk 0:04:51.8]} 3... g6 {[%clk 0:04:57.1]}
4. g3 {[%clk 0:04:42.5]} 4... Bg7 {[%clk 0:04:57]} 5. Bg2 {[%clk 0:04:25.1]}
5... O-O {[%clk 0:04:55.5]} 6. O-O {[%clk 0:03:51.6]} 6... Bg4 {[%clk
0:04:49.9]} 7. Nbd2 {[%clk 0:03:46.3]} 7... Qd7 {[%clk 0:04:45.6]} 8. b3 {[%clk
0:03:33.5]} 8... Bh3 {[%clk 0:04:39.7]} 9. Nh4 {[%clk 0:03:22.3]} 9... Bxg2
{[%clk 0:04:36.1]} 10. Nxg2 {[%clk 0:03:20.9]} 10... Qe6 {[%clk 0:04:32.3]} 11.
Qf3 {[%clk 0:03:18.4]} 11... c6 {[%clk 0:04:28.3]} 12. c4 {[%clk 0:03:11.8]}
12... Nbd7 {[%clk 0:04:23.7]} 13. Nf4 {[%clk 0:03:10.2]} 13... Qf5 {[%clk
0:04:19.4]} 14. g4 {[%clk 0:02:59.8]} 14... Nxg4 {[%clk 0:04:11.5]} 15. e4
{[%clk 0:02:53.1]} 15... Qg5 {[%clk 0:03:53.9]} 16. Kh1 {[%clk 0:02:45.4]} 16...
Qh4 {[%clk 0:03:33.4]} 17. Qg3 {[%clk 0:02:33]} 17... Qxg3 {[%clk 0:03:30]} 18.
fxg3 {[%clk 0:02:30.3]} 18... Bxd4 {[%clk 0:03:28.4]} 19. Rb1 {[%clk 0:02:27.5]}
19... Nf2+ {[%clk 0:02:55.3]} 20. Kg2 {[%clk 0:02:15.3]} 20... Nd3 {[%clk
0:02:48.5]} 21. Nf3 {[%clk 0:02:12.9]} 21... Nxf4+ {[%clk 0:02:45.6]} 22. gxf4
{[%clk 0:02:08.9]} 22... Bg7 {[%clk 0:02:40]} 23. Rd1 {[%clk 0:01:49.3]} 23...
Rad8 {[%clk 0:02:36]} 24. e5 {[%clk 0:01:24.4]} 24... dxe5 {[%clk 0:02:23.1]}
25. Nxe5 {[%clk 0:00:45.3]} 25... Nxe5 {[%clk 0:02:19.6]} 26. Rxd8 {[%clk
0:00:42.7]} 26... Rxd8 {[%clk 0:02:10.2]} 27. fxe5 {[%clk 0:00:41.1]} 27... Bxe5
{[%clk 0:02:08.9]} 28. Bg5 {[%clk 0:00:39.1]} 28... f6 {[%clk 0:02:06.4]} 29.
Be3 {[%clk 0:00:32.4]} 29... Rd3 {[%clk 0:02:03.5]} 30. Bxa7 {[%clk 0:00:30]}
30... Rd2+ {[%clk 0:01:59.9]} 31. Kh3 {[%clk 0:00:27.3]} 31... Rxa2 {[%clk
0:01:57.2]} 32. Bc5 {[%clk 0:00:24.5]} 32... Kf7 {[%clk 0:01:52.7]} 33. b4
{[%clk 0:00:19.9]} 33... Rxh2+ {[%clk 0:01:47.2]} 34. Kg4 {[%clk 0:00:17.5]}
34... Rg2+ {[%clk 0:01:32.7]} 0-1

[Event "Live Chess"]
[Site "Chess.com"]
[Date "2023.05.21"]
[Round "-"]
[White "Richardallis"]
[Black "YrrriKharkiv"]
[Result "0-1"]
[WhiteElo "1878"]
[BlackElo "2063"]
[TimeControl "300"]
[EndTime "2:07:37 PDT"]
[Termination "YrrriKharkiv won by resignation"]

1. d4 {[%clk 0:04:55.7]} 1... Nf6 {[%clk 0:04:58.6]} 2. Nf3 {[%clk 0:04:55]}
2... c5 {[%clk 0:04:58.1]} 3. c3 {[%clk 0:04:53.7]} 3... g6 {[%clk 0:04:56.8]}
4. Bg5 {[%clk 0:04:52.9]} 4... Bg7 {[%clk 0:04:55.9]} 5. Nbd2 {[%clk 0:04:51.8]}
5... cxd4 {[%clk 0:04:55]} 6. cxd4 {[%clk 0:04:47.7]} 6... d6 {[%clk 0:04:54.6]}
7. e4 {[%clk 0:04:46.6]} 7... Nc6 {[%clk 0:04:53.3]} 8. Bb5 {[%clk 0:04:44.9]}
8... O-O {[%clk 0:04:50.4]} 9. Rc1 {[%clk 0:04:41]} 9... Qa5 {[%clk 0:04:49.1]}
10. Qa4 {[%clk 0:04:34.7]} 10... Qxa4 {[%clk 0:04:39.5]} 11. Bxa4 {[%clk
0:04:33.3]} 11... Bg4 {[%clk 0:04:34]} 12. Bxc6 {[%clk 0:04:29.9]} 12... bxc6
{[%clk 0:04:32.3]} 13. Bxf6 {[%clk 0:04:26.8]} 13... Bxf6 {[%clk 0:04:28.7]} 14.
Rxc6 {[%clk 0:04:25.6]} 14... Rfc8 {[%clk 0:04:21.4]} 15. Rxc8+ {[%clk
0:04:19.9]} 15... Rxc8 {[%clk 0:04:18.9]} 16. O-O {[%clk 0:04:19.1]} 16... Rc2
{[%clk 0:04:16.5]} 17. e5 {[%clk 0:04:16]} 17... dxe5 {[%clk 0:04:11.8]} 18.
dxe5 {[%clk 0:04:15.4]} 18... Bg7 {[%clk 0:04:09.4]} 19. h3 {[%clk 0:04:14.5]}
19... Bxf3 {[%clk 0:04:03.9]} 20. Nxf3 {[%clk 0:04:13.4]} 20... Rxb2 {[%clk
0:04:03.6]} 21. Rd1 {[%clk 0:04:12.8]} 21... Rxa2 {[%clk 0:04:01]} 22. Rd8+
{[%clk 0:04:10]} 22... Bf8 {[%clk 0:04:00.5]} 23. Ng5 {[%clk 0:04:05.2]} 23...
Ra5 {[%clk 0:03:56.7]} 24. f4 {[%clk 0:04:03.6]} 24... Ra4 {[%clk 0:03:43.9]}
25. g3 {[%clk 0:03:54.5]} 25... h6 {[%clk 0:03:34.8]} 26. Nf3 {[%clk 0:03:47.7]}
26... e6 {[%clk 0:03:32.2]} 27. Kf2 {[%clk 0:03:41.2]} 27... Kg7 {[%clk
0:03:30.8]} 28. Rd7 {[%clk 0:03:37.2]} 28... Bc5+ {[%clk 0:03:28.2]} 29. Ke2
{[%clk 0:03:32]} 29... Ra2+ {[%clk 0:03:26.8]} 30. Kd3 {[%clk 0:03:29.6]} 30...
Ra3+ {[%clk 0:03:23.5]} 31. Kc4 {[%clk 0:03:25.8]} 31... Rxf3 {[%clk 0:03:18.7]}
32. Kxc5 {[%clk 0:03:24.3]} 32... Rxg3 {[%clk 0:03:18]} 33. Rxa7 {[%clk
0:03:22.8]} 33... Rxh3 {[%clk 0:03:17.2]} 34. Kd4 {[%clk 0:03:20.7]} 34... Rf3
{[%clk 0:03:15]} 35. Ke4 {[%clk 0:03:19.6]} 35... Rf2 {[%clk 0:03:14.1]} 36. Ra3
{[%clk 0:03:17.8]} 36... g5 {[%clk 0:03:10.2]} 37. Rg3 {[%clk 0:03:14.2]} 37...
Rxf4+ {[%clk 0:03:08]} 38. Ke3 {[%clk 0:03:13.1]} 38... Kg6 {[%clk 0:03:07.4]}
39. Rg1 {[%clk 0:03:11.8]} 39... h5 {[%clk 0:03:06.3]} 40. Rh1 {[%clk
0:03:10.8]} 40... h4 {[%clk 0:03:04.3]} 41. Rh2 {[%clk 0:03:09.9]} 41... Kf5
{[%clk 0:03:03.1]} 42. Rg2 {[%clk 0:03:07.5]} 42... g4 {[%clk 0:03:01.9]} 43.
Rg1 {[%clk 0:03:06.2]} 43... Kxe5 {[%clk 0:03:00.5]} 44. Ra1 {[%clk 0:03:03.9]}
44... Kf5 {[%clk 0:02:59.7]} 45. Ra7 {[%clk 0:03:01.9]} 45... f6 {[%clk
0:02:58.6]} 46. Rh7 {[%clk 0:03:00.5]} 46... Rf3+ {[%clk 0:02:51.1]} 47. Ke2
{[%clk 0:02:59.3]} 47... Rh3 {[%clk 0:02:49.8]} 48. Kf2 {[%clk 0:02:56.1]} 48...
Kf4 {[%clk 0:02:45.9]} 49. Kg2 {[%clk 0:02:52.1]} 49... f5 {[%clk 0:02:45]} 50.
Rh6 {[%clk 0:02:50.2]} 50... e5 {[%clk 0:02:43.8]} 51. Re6 {[%clk 0:02:48.2]}
51... Re3 {[%clk 0:02:42.4]} 52. Rh6 {[%clk 0:02:45.8]} 52... h3+ {[%clk
0:02:41.7]} 53. Kh1 {[%clk 0:02:45.3]} 53... Kg3 {[%clk 0:02:39.6]} 54. Rxh3+
{[%clk 0:02:44]} 54... gxh3 {[%clk 0:02:37.3]} 0-1

[Event "Live Chess"]
[Site "Chess.com"]
[Date "2023.05.21"]
[Round "-"]
[White "lateforthesky"]
[Black "JohanKjeldahl"]
[Result "1-0"]
[WhiteElo "2134"]
[BlackElo "1885"]
[TimeControl "300"]
[EndTime "2:07:45 PDT"]
[Termination "lateforthesky won by resignation"]

1. e4 {[%clk 0:04:56.4]} 1... Nc6 {[%clk 0:04:55.2]} 2. Nf3 {[%clk 0:04:54.6]}
2... e5 {[%clk 0:04:52.3]} 3. Bb5 {[%clk 0:04:52.3]} 3... Nf6 {[%clk 0:04:50]}
4. d3 {[%clk 0:04:48.7]} 4... Be7 {[%clk 0:04:47.1]} 5. c3 {[%clk 0:04:47.5]}
5... O-O {[%clk 0:04:45.8]} 6. Nbd2 {[%clk 0:04:46.4]} 6... d6 {[%clk
0:04:44.7]} 7. Nf1 {[%clk 0:04:44.8]} 7... a6 {[%clk 0:04:43.8]} 8. Ba4 {[%clk
0:04:42.7]} 8... Bd7 {[%clk 0:04:41.6]} 9. Ng3 {[%clk 0:04:39.5]} 9... b5 {[%clk
0:04:40.4]} 10. Bb3 {[%clk 0:04:36.7]} 10... Na5 {[%clk 0:04:38.9]} 11. Bc2
{[%clk 0:04:34.9]} 11... c5 {[%clk 0:04:37.9]} 12. O-O {[%clk 0:04:28.2]} 12...
h6 {[%clk 0:04:32.8]} 13. h3 {[%clk 0:04:26]} 13... Qc8 {[%clk 0:04:31.2]} 14.
Kh2 {[%clk 0:04:23.9]} 14... Nc6 {[%clk 0:04:23.7]} 15. Re1 {[%clk 0:04:20.8]}
15... b4 {[%clk 0:04:19.9]} 16. Be3 {[%clk 0:04:05.6]} 16... a5 {[%clk
0:04:17.7]} 17. Qd2 {[%clk 0:04:03]} 17... Kh7 {[%clk 0:04:13.1]} 18. Rad1
{[%clk 0:03:55.1]} 18... Rb8 {[%clk 0:04:00.9]} 19. d4 {[%clk 0:03:32.3]} 19...
bxc3 {[%clk 0:03:56.5]} 20. bxc3 {[%clk 0:03:30.6]} 20... cxd4 {[%clk
0:03:54.8]} 21. cxd4 {[%clk 0:03:29.5]} 21... exd4 {[%clk 0:03:53.7]} 22. Nxd4
{[%clk 0:03:27.8]} 22... Nxd4 {[%clk 0:03:40.4]} 23. Bxd4 {[%clk 0:03:26.8]}
23... Qc6 {[%clk 0:03:27]} 24. e5+ {[%clk 0:03:18]} 1-0

[Event "Live Chess"]
[Site "Chess.com"]
[Date "2023.05.21"]
[Round "-"]
[White "Goblinbasher"]
[Black "Ferrarifan27"]
[Result "0-1"]
[WhiteElo "1236"]
[BlackElo "2094"]
[TimeControl "300"]
[EndTime "2:07:49 PDT"]
[Termination "Ferrarifan27 won by resignation"]

1. e4 {[%clk 0:04:56.6]} 1... e5 {[%clk 0:04:58.9]} 2. Nc3 {[%clk 0:04:55.9]}
2... Nf6 {[%clk 0:04:56.9]} 3. f4 {[%clk 0:04:54.5]} 3... d6 {[%clk 0:04:52.4]}
4. Nf3 {[%clk 0:04:50.5]} 4... Nc6 {[%clk 0:04:50]} 5. Bc4 {[%clk 0:04:48.4]}
5... exf4 {[%clk 0:04:45]} 6. d4 {[%clk 0:04:44.3]} 6... Nh5 {[%clk 0:04:41.7]}
7. O-O {[%clk 0:04:39]} 7... Be7 {[%clk 0:04:28.8]} 8. Bxf7+ {[%clk 0:04:34.5]}
8... Kxf7 {[%clk 0:04:27.3]} 9. Ne5+ {[%clk 0:04:31.6]} 9... dxe5 {[%clk
0:04:25.5]} 10. Qxh5+ {[%clk 0:04:31.1]} 10... g6 {[%clk 0:04:24.3]} 11. Qf3
{[%clk 0:04:14]} 11... Nxd4 {[%clk 0:04:22.9]} 12. Qf2 {[%clk 0:04:05.8]} 12...
Bc5 {[%clk 0:04:13.6]} 13. Bxf4 {[%clk 0:04:01.9]} 13... Ne2+ {[%clk 0:04:09.5]}
14. Kh1 {[%clk 0:03:54.4]} 14... Bxf2 {[%clk 0:04:08.5]} 15. Rxf2 {[%clk
0:03:53]} 15... Nxf4 {[%clk 0:04:07.7]} 16. Raf1 {[%clk 0:03:49.7]} 16... Kg7
{[%clk 0:04:05.7]} 0-1

[Event "Live Chess"]
[Site "Chess.com"]
[Date "2023.05.21"]
[Round "-"]
[White "ossie57"]
[Black "ProfPoisson"]
[Result "1-0"]
[WhiteElo "1934"]
[BlackElo "1216"]
[TimeControl "300"]
[EndTime "2:07:50 PDT"]
[Termination "ossie57 won by checkmate"]

1. d4 {[%clk 0:04:58.2]} 1... e6 {[%clk 0:04:57.4]} 2. Nc3 {[%clk 0:04:56.3]}
2... f5 {[%clk 0:04:54.6]} 3. Bf4 {[%clk 0:04:52.9]} 3... Nf6 {[%clk 0:04:51.9]}
4. g4 {[%clk 0:04:51.6]} 4... Bb4 {[%clk 0:04:46.3]} 5. gxf5 {[%clk 0:04:46.8]}
5... Bxc3+ {[%clk 0:04:43.5]} 6. bxc3 {[%clk 0:04:45.5]} 6... exf5 {[%clk
0:04:39.2]} 7. Qd3 {[%clk 0:04:41.4]} 7... d6 {[%clk 0:04:34.8]} 8. Bg2 {[%clk
0:04:33.1]} 8... O-O {[%clk 0:04:32.4]} 9. h4 {[%clk 0:04:28.1]} 9... d5 {[%clk
0:04:29]} 10. Nf3 {[%clk 0:04:20.8]} 10... Ne4 {[%clk 0:04:21.2]} 11. Bg5 {[%clk
0:04:04]} 11... Nxg5 {[%clk 0:04:16.4]} 12. hxg5 {[%clk 0:04:00.3]} 12... g6
{[%clk 0:04:12.1]} 13. Ne5 {[%clk 0:03:53.5]} 13... Nc6 {[%clk 0:03:59.4]} 14.
Qh3 {[%clk 0:03:51.8]} 14... Qe7 {[%clk 0:03:52.1]} 15. Nxg6 {[%clk 0:03:35.5]}
15... hxg6 {[%clk 0:03:35]} 16. Qh8+ {[%clk 0:03:34.1]} 16... Kf7 {[%clk
0:03:33.5]} 17. Rh7+ {[%clk 0:03:32.6]} 17... Ke8 {[%clk 0:03:28.8]} 18. Rxe7+
{[%clk 0:03:30.8]} 18... Nxe7 {[%clk 0:03:26.5]} 19. Qe5 {[%clk 0:03:26.9]}
19... c6 {[%clk 0:03:17.8]} 20. Rb1 {[%clk 0:03:16.3]} 20... b5 {[%clk
0:03:11.6]} 21. a4 {[%clk 0:03:14.9]} 21... Ba6 {[%clk 0:03:05.5]} 22. axb5
{[%clk 0:03:05.2]} 22... Bxb5 {[%clk 0:03:02.9]} 23. c4 {[%clk 0:02:58.5]} 23...
dxc4 {[%clk 0:02:58.1]} 24. Rxb5 {[%clk 0:02:56]} 24... cxb5 {[%clk 0:02:55.8]}
25. Bxa8 {[%clk 0:02:55]} 25... Kf7 {[%clk 0:02:50.7]} 26. Qf6+ {[%clk
0:02:49.5]} 26... Kg8 {[%clk 0:02:48.9]} 27. Qxe7 {[%clk 0:02:48.1]} 27... Rxa8
{[%clk 0:02:46.7]} 28. Qb7 {[%clk 0:02:35.4]} 28... Rf8 {[%clk 0:02:43]} 29.
Qxb5 {[%clk 0:02:34]} 29... f4 {[%clk 0:02:37.8]} 30. Qxc4+ {[%clk 0:02:32.4]}
30... Kh7 {[%clk 0:02:31.9]} 31. f3 {[%clk 0:02:30.1]} 31... a5 {[%clk
0:02:28.4]} 32. Qc7+ {[%clk 0:02:29.1]} 32... Kg8 {[%clk 0:02:23.9]} 33. Qxa5
{[%clk 0:02:27.9]} 33... Kh7 {[%clk 0:02:14.1]} 34. Qc7+ {[%clk 0:02:25.1]}
34... Kg8 {[%clk 0:02:12.3]} 35. d5 {[%clk 0:02:20.7]} 35... Kh8 {[%clk
0:01:53.4]} 36. d6 {[%clk 0:02:19.5]} 36... Rf7 {[%clk 0:01:48.3]} 37. Qc8+
{[%clk 0:02:12.9]} 37... Kg7 {[%clk 0:01:41.2]} 38. d7 {[%clk 0:02:12.1]} 38...
Re7 {[%clk 0:01:26.2]} 39. Qc3+ {[%clk 0:02:06.9]} 39... Kh7 {[%clk 0:01:22]}
40. Qh8+ {[%clk 0:02:03.3]} 40... Kxh8 {[%clk 0:01:15.7]} 41. d8=Q+ {[%clk
0:02:02.6]} 41... Kg7 {[%clk 0:01:12.9]} 42. Qxe7+ {[%clk 0:02:01.9]} 42... Kh8
{[%clk 0:01:11.1]} 43. c4 {[%clk 0:02:00.2]} 43... Kg8 {[%clk 0:01:08.9]} 44. c5
{[%clk 0:01:59.7]} 44... Kh8 {[%clk 0:01:07.7]} 45. c6 {[%clk 0:01:59.2]} 45...
Kg8 {[%clk 0:01:07.3]} 46. c7 {[%clk 0:01:58.8]} 46... Kh8 {[%clk 0:01:06.8]}
47. c8=Q# {[%clk 0:01:58.2]} 1-0

[Event "Live Chess"]
[Site "Chess.com"]
[Date "2023.05.21"]
[Round "-"]
[White "LanceMaster23"]
[Black "OleksiyJr1"]
[Result "1-0"]
[WhiteElo "1946"]
[BlackElo "965"]
[TimeControl "300"]
[EndTime "2:07:50 PDT"]
[Termination "LanceMaster23 won by resignation"]

1. Nf3 {[%clk 0:04:58.1]} 1... d5 {[%clk 0:04:57.4]} 2. d4 {[%clk 0:04:57.4]}
2... Nf6 {[%clk 0:04:54.8]} 3. Bf4 {[%clk 0:04:56.8]} 3... e6 {[%clk 0:04:52]}
4. e3 {[%clk 0:04:56.1]} 4... Nc6 {[%clk 0:04:50.1]} 5. Be2 {[%clk 0:04:55.3]}
5... Bd7 {[%clk 0:04:46.9]} 6. c3 {[%clk 0:04:54.6]} 6... b5 {[%clk 0:04:41.3]}
7. Bxb5 {[%clk 0:04:53.1]} 7... a6 {[%clk 0:04:39.5]} 8. Bd3 {[%clk 0:04:51.8]}
8... Bc8 {[%clk 0:04:38.5]} 9. Nbd2 {[%clk 0:04:41.9]} 9... a5 {[%clk
0:04:38.4]} 10. Qa4 {[%clk 0:04:39.9]} 10... Bd7 {[%clk 0:04:35.9]} 11. Bb5
{[%clk 0:04:39.3]} 11... Nxd4 {[%clk 0:04:34.9]} 12. exd4 {[%clk 0:04:38.1]} 1-0

[Event "Live Chess"]
[Site "Chess.com"]
[Date "2023.05.21"]
[Round "-"]
[White "FailsGambits"]
[Black "HadesLearmonth"]
[Result "1-0"]
[WhiteElo "1340"]
[BlackElo "1203"]
[TimeControl "300"]
[EndTime "2:07:51 PDT"]
[Termination "FailsGambits won by resignation"]

1. e4 {[%clk 0:04:59.2]} 1... e5 {[%clk 0:04:58.5]} 2. Nf3 {[%clk 0:04:58.2]}
2... Nc6 {[%clk 0:04:56.9]} 3. d4 {[%clk 0:04:57.4]} 3... exd4 {[%clk
0:04:55.4]} 4. Nxd4 {[%clk 0:04:57.3]} 4... Bc5 {[%clk 0:04:54.3]} 5. Be3 {[%clk
0:04:54.6]} 5... Qf6 {[%clk 0:04:53]} 6. c3 {[%clk 0:04:53.8]} 6... Nge7 {[%clk
0:04:50.7]} 7. Bb5 {[%clk 0:04:52]} 7... Nxd4 {[%clk 0:04:48.1]} 8. Bxd4 {[%clk
0:04:49.5]} 8... Bxd4 {[%clk 0:04:44.2]} 9. cxd4 {[%clk 0:04:48.1]} 9... O-O
{[%clk 0:04:42.8]} 10. O-O {[%clk 0:04:42.3]} 10... d5 {[%clk 0:04:36]} 11. Re1
{[%clk 0:04:27.9]} 11... c6 {[%clk 0:04:26.3]} 12. Bd3 {[%clk 0:04:19]} 12... b5
{[%clk 0:04:17]} 13. exd5 {[%clk 0:04:13.8]} 13... Nxd5 {[%clk 0:04:14.3]} 14.
Nc3 {[%clk 0:04:09.9]} 14... Nf4 {[%clk 0:04:11.5]} 15. Bf1 {[%clk 0:03:47.8]}
15... Qg6 {[%clk 0:03:59.2]} 16. g3 {[%clk 0:03:46.2]} 16... Ne6 {[%clk
0:03:52.2]} 17. d5 {[%clk 0:03:22.8]} 17... cxd5 {[%clk 0:03:47.8]} 18. Qxd5
{[%clk 0:03:22.7]} 18... Ng5 {[%clk 0:03:43.6]} 19. Qxa8 {[%clk 0:03:16.7]}
19... Bh3 {[%clk 0:03:35.8]} 20. Re8 {[%clk 0:02:55.9]} 20... Ne6 {[%clk
0:03:25]} 21. Rxf8+ {[%clk 0:02:45.9]} 21... Nxf8 {[%clk 0:03:22.3]} 22. Bxh3
{[%clk 0:02:44.1]} 22... Qc2 {[%clk 0:03:18.8]} 23. Nd5 {[%clk 0:01:58.7]} 23...
Qxb2 {[%clk 0:03:10.3]} 24. Ne7+ {[%clk 0:01:54.6]} 1-0

[Event "Live Chess"]
[Site "Chess.com"]
[Date "2023.05.21"]
[Round "-"]
[White "ChessTWSS"]
[Black "wadsy27"]
[Result "0-1"]
[WhiteElo "1560"]
[BlackElo "2569"]
[TimeControl "300"]
[EndTime "2:07:52 PDT"]
[Termination "wadsy27 won by checkmate"]

1. d4 {[%clk 0:04:58.1]} 1... d5 {[%clk 0:04:59.1]} 2. Bf4 {[%clk 0:04:54.8]}
2... Nf6 {[%clk 0:04:57.7]} 3. e3 {[%clk 0:04:49.1]} 3... c5 {[%clk 0:04:56.9]}
4. c3 {[%clk 0:04:45.9]} 4... Nc6 {[%clk 0:04:56.3]} 5. Nd2 {[%clk 0:04:40.6]}
5... Qb6 {[%clk 0:04:55.3]} 6. Qb3 {[%clk 0:04:35.4]} 6... c4 {[%clk 0:04:53.4]}
7. Qxb6 {[%clk 0:04:29.9]} 7... axb6 {[%clk 0:04:53.3]} 8. Ngf3 {[%clk
0:04:23.7]} 8... b5 {[%clk 0:04:52.2]} 9. Ne5 {[%clk 0:04:17]} 9... h6 {[%clk
0:04:47.6]} 10. Be2 {[%clk 0:04:10.3]} 10... g5 {[%clk 0:04:45.6]} 11. Nxc6
{[%clk 0:04:04.7]} 11... bxc6 {[%clk 0:04:43.9]} 12. Bg3 {[%clk 0:04:00.8]}
12... Bf5 {[%clk 0:04:39.4]} 13. O-O {[%clk 0:03:52.7]} 13... e6 {[%clk
0:04:30.4]} 14. Be5 {[%clk 0:03:45.1]} 14... Be7 {[%clk 0:04:25.8]} 15. Bxf6
{[%clk 0:03:40.9]} 15... Bxf6 {[%clk 0:04:24.4]} 16. h3 {[%clk 0:03:31.7]} 16...
Kd7 {[%clk 0:04:23]} 17. g4 {[%clk 0:03:25.8]} 17... Bg6 {[%clk 0:04:18.7]} 18.
f4 {[%clk 0:03:19.9]} 18... Be7 {[%clk 0:04:15.1]} 19. Rf2 {[%clk 0:03:03.7]}
19... f6 {[%clk 0:04:12.4]} 20. a3 {[%clk 0:02:55.1]} 20... h5 {[%clk
0:04:02.5]} 21. Raf1 {[%clk 0:02:52.5]} 21... hxg4 {[%clk 0:03:59.7]} 22. Bxg4
{[%clk 0:02:41.5]} 22... f5 {[%clk 0:03:57.7]} 23. Be2 {[%clk 0:02:27.5]} 23...
gxf4 {[%clk 0:03:55.5]} 24. Rxf4 {[%clk 0:02:16]} 24... Rxh3 {[%clk 0:03:53]}
25. R1f3 {[%clk 0:02:08.3]} 25... Rxf3 {[%clk 0:03:48.6]} 26. Bxf3 {[%clk
0:01:57.8]} 26... Bg5 {[%clk 0:03:46.9]} 27. Kg2 {[%clk 0:01:40.1]} 27... Rh8
{[%clk 0:03:43.4]} 28. Kg3 {[%clk 0:01:26.1]} 28... Bh5 {[%clk 0:03:36.4]} 29.
Bxh5 {[%clk 0:01:24.2]} 29... Bxf4+ {[%clk 0:03:35.6]} 30. exf4 {[%clk
0:01:17.9]} 30... Rxh5 {[%clk 0:03:34.6]} 31. Kf2 {[%clk 0:01:11.1]} 31... Rh2+
{[%clk 0:03:31.8]} 32. Ke3 {[%clk 0:01:05.4]} 32... Ke7 {[%clk 0:03:29.8]} 33.
b4 {[%clk 0:00:55.7]} 33... Kf6 {[%clk 0:03:19]} 34. Kf3 {[%clk 0:00:52.1]}
34... Rxd2 {[%clk 0:03:16.9]} 35. Kg3 {[%clk 0:00:50.1]} 35... Rd3+ {[%clk
0:03:15.3]} 36. Kh4 {[%clk 0:00:49.3]} 36... Rxc3 {[%clk 0:03:15]} 37. Kh5
{[%clk 0:00:48.2]} 37... Rh3# {[%clk 0:03:13.9]} 0-1